[Event "XLV Badalona Open 2019"]
[Site "Badalona"]
[Date "2019.08.07"]
[Round "6.2"]
[White "Moskalenko, Viktor"]
[Black "Rojas Keim, Luis"]
[Result "0-1"]
[ECO "A67"]
[WhiteElo "2500"]
[BlackElo "2338"]
[Annotator "ChessBase"]
[PlyCount "130"]
[EventDate "2019.08.02"]
[EventType "swiss"]
[EventCountry "ESP"]
[SourceTitle "playchess.com"]
[Source "ChessBase"]
[SourceQuality "1"]
[TimeControl "5400+30"]

1. d4 Nf6 {[%emt 0:01:12]} 2. c4 {[%emt 0:00:13]} e6 {[%emt 0:00:05]} 3. Nc3 {[%emt 0:00:11]} c5 4. d5 {[%emt 0:00:14]} exd5 {[%emt 0:00:34]} 5. cxd5 d6 {[%emt 0:00:00]} 6. e4 {[%emt 0:03:11]} g6 7. f4 {[%emt 0:00:10]} Bg7 {[%emt 0:00:15]} 8. Bb5+ {[%emt 0:04:36]} Nfd7 {[%emt 0:00:51]} 9. Be2 {[%emt 0:00:05]} O-O {[%emt 0:00:08]} 10. Nf3 Na6 {[%emt 0:00:03]} 11. O-O {[%emt 0:00:54]} Nc7 {[%emt 0:05:29]} 12. f5 {[%emt 0:08:53]} Ne5 {[%emt 0:07:41]} 13. Qe1 {[%emt 0:00:12]} Nxf3+ {[%emt 0:18:38]} 14. Rxf3 {[%emt 0:20:22]} b5 {[%emt 0:06:04]} 15. Qg3 {[%emt 0:01:10]} b4 {[%emt 0:02:22]} 16. Nd1 {[%emt 0:03:33]} Re8 {[%emt 0:06:41]} 17. Nf2 {[%emt 0:30:38]} Bxf5 {[%emt 0:01:22]} 18. Bg5 {[%emt 0:00:14]} f6 {[%emt 0:01:46]} 19. Bf4 {[%emt 0:00:46]} Bxe4 {[%emt 0:17:00]} 20. Bxd6 {[%emt 0:17:35]} Rc8 {[%emt 0:00:30]} 21. Bc4 Kh8 {[%emt 0:00:30]} 22. Nxe4 {[%emt 0:01:00]} Rxe4 {[%emt 0:10:25]} 23. Rf4 Ne8 {[%emt 0:00:02]} 24. Rxe4 {[%emt 0:01:47]} Nxd6 25. Qd3 Nxe4 {[%emt 0:01:37]} 26. Qxe4 {[%emt 0:00:39]} f5 27. Qe2 Bd4+ {[%emt 0:02:15]} 28. Kh1 {[%emt 0:04:54]} Qf6 {[%emt 0:00:38]} 29. Rb1 {[%emt 0:01:41]} Rc7 30. Qe8+ {[%emt 0:00:30]} Kg7 {[%emt 0:01:19]} 31. Re1 {[%emt 0:00:37]} Bf2 {[%emt 0:06:53]} 32. Re2 {[%emt 0:00:08]} Qd4 {[%emt 0:03:18]} 33. Qe5+ Kh6 {[%emt 0:00:03]} 34. Qxd4 {[%emt 0:01:15]} cxd4 {[%emt 0:00:15]} 35. b3 {[%emt 0:00:00]} Be3 {[%emt 0:01:35]} 36. g3 {[%emt 0:00:26]} Kg5 {[%emt 0:00:10]} 37. Kg2 {[%emt 0:01:36]} Kf6 {[%emt 0:00:44]} 38. Kf3 {[%emt 0:00:23]} g5 39. g4 {[%emt 0:00:05]} fxg4+ {[%emt 0:00:57]} 40. Kxg4 {[%emt 0:00:52]} Ke5 41. Re1 {[%emt 0:00:10]} Ke4 {[%emt 0:01:07]} 42. Rd1 Rf7 {[%emt 0:02:47]} 43. Bd3+ {[%emt 0:00:52]} Ke5 {[%emt 0:02:43]} 44. Rf1 {[%emt 0:00:00]} Rxf1 {[%emt 0:02:39]} 45. Bxf1 Kxd5 {[%emt 0:00:07]} 46. Bd3 {[%emt 0:00:44]} h6 47. Kf5 {[%emt 0:01:14]} h5 {[%emt 0:00:46]} 48. h3 g4 {[%emt 0:01:18]} 49. hxg4 {[%emt 0:00:33]} h4 {[%emt 0:00:46]} 50. Bf1 h3 51. Bxh3 {[%emt 0:00:58]} d3 {[%emt 0:00:32]} 52. g5 Kd4 {[%emt 0:00:34]} 53. g6 {[%emt 0:00:18]} Bh6 {[%emt 0:00:04]} 54. Bg4 {[%emt 0:00:15]} Kc3 {[%emt 0:00:48]} 55. Ke4 {[%emt 0:00:25]} Kc2 56. Kd4 {[%emt 0:00:04]} d2 {[%emt 0:01:36]} 57. Kc4 Bf8 58. g7 {[%emt 0:02:20]} Bxg7 {[%emt 0:00:19]} 59. Kxb4 d1=Q {[%emt 0:00:18]} 60. Bxd1+ {[%emt 0:00:03]} Kxd1 {[%emt 0:00:04]} 61. a4 {[%emt 0:02:01]} Kc2 {[%emt 0:00:46]} 62. a5 {[%emt 0:00:44]} Kb2 {[%emt 0:01:19]} 63. Ka4 {[%emt 0:00:05]} Kc3 {[%emt 0:00:30]} 64. b4 {[%emt 0:00:30]} Kc4 {[%emt 0:00:12]} 65. b5 Be5 0-1

[Event "XLV Badalona Open 2019"]
[Site "Badalona"]
[Date "2019.08.07"]
[Round "6.3"]
[White "Oliva Castaneda, Kevel"]
[Black "Cu Hor, Winston Darwin"]
[Result "1/2-1/2"]
[ECO "E04"]
[WhiteElo "2467"]
[BlackElo "2335"]
[Annotator "ChessBase"]
[PlyCount "33"]
[EventDate "2019.08.02"]
[EventType "swiss"]
[EventCountry "ESP"]
[SourceTitle "playchess.com"]
[Source "ChessBase"]
[SourceQuality "1"]
[TimeControl "5400+30"]

1. d4 {[%emt 0:00:00]} Nf6 {[%emt 0:00:40]} 2. c4 {[%emt 0:00:00]} e6 {[%emt 0:00:05]} 3. g3 {[%emt 0:00:00]} d5 {[%emt 0:00:07]} 4. Nf3 {[%emt 0:00:00]} dxc4 {[%emt 0:00:00]} 5. Bg2 c5 6. O-O {[%emt 0:00:00]} Nc6 {[%emt 0:00:24]} 7. dxc5 {[%emt 0:00:00]} Qxd1 {[%emt 0:00:00]} 8. Rxd1 {[%emt 0:00:02]} Bxc5 9. Nbd2 {[%emt 0:00:00]} c3 {[%emt 0:00:19]} 10. bxc3 {[%emt 0:00:00]} O-O {[%emt 0:04:41]} 11. Nb3 {[%emt 0:02:30]} Be7 {[%emt 0:01:38]} 12. Nfd4 {[%emt 0:00:47]} Nxd4 {[%emt 0:00:06]} 13. cxd4 {[%emt 0:27:34]} Nd5 {[%emt 0:04:46]} 14. Bb2 {[%emt 0:03:31]} f5 {[%emt 0:02:13]} 15. e4 {[%emt 0:00:18]} fxe4 {[%emt 0:01:11]} 16. Bxe4 {[%emt 0:12:51]} b6 17. Nc1 1/2-1/2

[Event "XLV Badalona Open 2019"]
[Site "Badalona"]
[Date "2019.08.07"]
[Round "6.4"]
[White "Perez Mitjans, Orelvis"]
[Black "Mateus, Alejandro"]
[Result "1-0"]
[ECO "B00"]
[WhiteElo "2416"]
[BlackElo "2334"]
[Annotator "NA"]
[PlyCount "77"]
[EventDate "2019.08.02"]
[EventType "swiss"]
[EventCountry "ESP"]
[SourceTitle "playchess.com"]
[Source "ChessBase"]
[SourceQuality "1"]
[TimeControl "5400+30"]

1. e4 d6 {[%emt 0:00:00]} 2. d4 {[%emt 0:09:50]} Nf6 {[%emt 0:00:08]} 3. f3 {[%emt 0:02:41]} c5 {[%emt 0:02:19]} 4. c3 {[%emt 0:04:11]} e6 {[%emt 0:02:51]} 5. Be3 {[%emt 0:01:54]} Nc6 {[%emt 0:01:37]} 6. Qd2 {[%emt 0:01:41]} Be7 {[%emt 0:01:13]} 7. Bd3 {[%emt 0:00:19]} O-O {[%emt 0:09:24]} 8. Ne2 {[%emt 0:04:37]} d5 {[%emt 0:00:00]} 9. e5 {[%emt 0:01:19]} Nd7 10. O-O {[%emt 0:00:06]} cxd4 {[%emt 0:05:22]} 11. cxd4 {[%emt 0:00:12]} Nb4 {[%emt 0:00:46]} 12. Nbc3 {[%emt 0:00:02]} Nxd3 {[%emt 0:01:40]} 13. Qxd3 {[%emt 0:02:40]} Nb6 {[%emt 0:01:49]} 14. b3 {[%emt 0:01:14]} Bd7 {[%emt 0:05:27]} 15. f4 {[%emt 0:10:20]} f5 {[%emt 0:04:53]} 16. a4 {[%emt 0:01:48]} a6 {[%emt 0:05:20]} 17. Bd2 {[%emt 0:14:29]} Nc8 {[%emt 0:04:11]} 18. h3 {[%emt 0:01:11]} Na7 {[%emt 0:02:04]} 19. g4 {[%emt 0:04:16]} g6 20. gxf5 {[%emt 0:00:24]} gxf5 {[%emt 0:02:22]} 21. Kh2 {[%emt 0:00:38]} Kh8 {[%emt 0:05:39]} 22. Ng1 {[%emt 0:00:06]} Nc6 {[%emt 0:02:59]} 23. Nf3 {[%emt 0:00:37]} Nb4 {[%emt 0:02:41]} 24. Qe2 {[%emt 0:00:38]} Be8 {[%emt 0:02:58]} 25. Qf2 {[%emt 0:00:14]} Bh5 {[%emt 0:03:54]} 26. Ng5 {[%emt 0:00:06]} Bxg5 {[%emt 0:04:58]} 27. fxg5 {[%emt 0:09:20]} Qe7 {[%emt 0:04:03]} 28. Qh4 {[%emt 0:04:38]} Qe8 {[%emt 0:02:18]} 29. g6 {[%emt 0:04:55]} Bxg6 30. Bg5 {[%emt 0:00:11]} Rc8 {[%emt 0:03:05]} 31. Rf3 {[%emt 0:00:36]} Nc2 {[%emt 0:11:26]} 32. Rg1 {[%emt 0:01:17]} f4 33. Bf6+ {[%emt 0:00:33]} Kg8 {[%emt 0:00:41]} 34. Ne2 {[%emt 0:00:11]} Rxf6 {[%emt 0:06:54]} 35. Qxf6 {[%emt 0:00:50]} Qf7 {[%emt 0:00:59]} 36. Rxf4 {[%emt 0:00:08]} Qxf6 {[%emt 0:01:24]} 37. Rxf6 Ne3 38. Nf4 {[%emt 0:02:22]} Rc2+ {[%emt 0:00:34]} 39. Kh1 1-0

[Event "XLV Badalona Open 2019"]
[Site "Badalona"]
[Date "2019.08.07"]
[Round "6.5"]
[White "Hernandez, Cristian Andres"]
[Black "Harikrishnan.A.Ra"]
[Result "1-0"]
[ECO "C77"]
[WhiteElo "2355"]
[BlackElo "2401"]
[Annotator "ChessBase"]
[PlyCount "133"]
[EventDate "2019.08.02"]
[EventType "swiss"]
[EventCountry "ESP"]
[SourceTitle "playchess.com"]
[Source "ChessBase"]
[SourceQuality "1"]
[TimeControl "5400+30"]

1. e4 {[%emt 0:01:11]} e5 {[%emt 0:00:00]} 2. Nf3 Nc6 3. Bb5 {[%emt 0:00:38]} a6 {[%emt 0:00:00]} 4. Ba4 {[%emt 0:00:26]} Nf6 {[%emt 0:05:32]} 5. Nc3 d6 {[%emt 0:00:02]} 6. Bxc6+ {[%emt 0:17:19]} bxc6 {[%emt 0:00:29]} 7. d4 {[%emt 0:00:00]} exd4 {[%emt 0:03:17]} 8. Qxd4 {[%emt 0:03:11]} c5 {[%emt 0:03:27]} 9. Qd3 {[%emt 0:01:53]} Be7 {[%emt 0:01:59]} 10. Bg5 {[%emt 0:06:51]} O-O {[%emt 0:02:28]} 11. O-O {[%emt 0:00:38]} h6 {[%emt 0:05:55]} 12. Bh4 {[%emt 0:08:21]} Bg4 {[%emt 0:00:36]} 13. Rfe1 Nd7 {[%emt 0:01:45]} 14. Bxe7 {[%emt 0:01:05]} Qxe7 {[%emt 0:00:05]} 15. Nd5 {[%emt 0:02:46]} Qd8 {[%emt 0:04:58]} 16. h3 {[%emt 0:05:06]} Bh5 {[%emt 0:01:55]} 17. Nd2 {[%emt 0:05:24]} Bg6 {[%emt 0:02:48]} 18. Qg3 {[%emt 0:01:02]} Rb8 {[%emt 0:02:07]} 19. b3 {[%emt 0:05:11]} Re8 20. Nf4 {[%emt 0:00:14]} Bh7 {[%emt 0:03:51]} 21. Nh5 Qg5 {[%emt 0:04:39]} 22. Qxg5 {[%emt 0:01:18]} hxg5 {[%emt 0:00:22]} 23. f3 {[%emt 0:02:40]} Ne5 {[%emt 0:04:36]} 24. Ng3 {[%emt 0:07:20]} Nc6 {[%emt 0:06:04]} 25. Kf2 {[%emt 0:00:37]} Nb4 {[%emt 0:00:33]} 26. Rec1 {[%emt 0:09:12]} a5 {[%emt 0:00:29]} 27. Nc4 {[%emt 0:06:03]} Ra8 {[%emt 0:06:07]} 28. Ne3 {[%emt 0:01:33]} a4 {[%emt 0:17:04]} 29. Ne2 {[%emt 0:02:12]} c6 {[%emt 0:00:23]} 30. a3 {[%emt 0:02:09]} Na6 {[%emt 0:03:05]} 31. Rd1 {[%emt 0:01:03]} axb3 {[%emt 0:04:20]} 32. Rxd6 {[%emt 0:01:25]} bxc2 {[%emt 0:02:36]} 33. Rc1 {[%emt 0:00:31]} Nc7 {[%emt 0:00:30]} 34. Rxc2 {[%emt 0:00:30]} Ne6 {[%emt 0:02:10]} 35. Rc3 {[%emt 0:02:53]} Ra6 {[%emt 0:00:30]} 36. Nc4 {[%emt 0:00:34]} Rea8 {[%emt 0:03:01]} 37. Ke3 {[%emt 0:00:30]} Kf8 {[%emt 0:00:24]} 38. Rd7 {[%emt 0:02:35]} f6 {[%emt 0:01:29]} 39. g3 {[%emt 0:03:06]} Bg8 {[%emt 0:01:39]} 40. f4 {[%emt 0:00:30]} Ke8 {[%emt 0:00:43]} 41. Rb7 {[%emt 0:00:29]} Rd8 {[%emt 0:01:02]} 42. e5 {[%emt 0:00:30]} Kf8 {[%emt 0:01:47]} 43. Nd6 {[%emt 0:01:30]} gxf4+ {[%emt 0:00:30]} 44. gxf4 {[%emt 0:00:37]} g5 {[%emt 0:01:49]} 45. fxg5 {[%emt 0:00:09]} Nxg5 {[%emt 0:00:30]} 46. Nf4 {[%emt 0:00:30]} Bh7 {[%emt 0:00:37]} 47. Rxh7 {[%emt 0:00:45]} Nxh7 {[%emt 0:00:07]} 48. Ne6+ {[%emt 0:00:10]} Ke7 {[%emt 0:00:15]} 49. Nxd8 {[%emt 0:00:07]} Kxd8 {[%emt 0:00:05]} 50. Nb7+ {[%emt 0:00:31]} Ke7 {[%emt 0:00:13]} 51. Nxc5 {[%emt 0:00:09]} Ra8 {[%emt 0:00:30]} 52. Rb3 {[%emt 0:00:30]} Nf8 {[%emt 0:03:43]} 53. Rb7+ {[%emt 0:00:10]} Ke8 {[%emt 0:00:00]} 54. exf6 {[%emt 0:01:27]} Rxa3+ {[%emt 0:00:21]} 55. Ke4 {[%emt 0:00:43]} Rxh3 {[%emt 0:00:44]} 56. Re7+ {[%emt 0:00:30]} Kd8 {[%emt 0:00:03]} 57. Nb7+ {[%emt 0:00:59]} Kc8 {[%emt 0:00:01]} 58. Nd6+ {[%emt 0:00:23]} Kb8 {[%emt 0:00:19]} 59. f7 {[%emt 0:00:46]} Nh7 {[%emt 0:00:30]} 60. Kf5 {[%emt 0:00:30]} Rh6 {[%emt 0:00:35]} 61. Ne4 {[%emt 0:00:30]} Kc8 {[%emt 0:00:30]} 62. Re8+ {[%emt 0:00:12]} Kd7 {[%emt 0:03:31]} 63. Rh8 Rh1 {[%emt 0:01:17]} 64. Rxh7 {[%emt 0:01:07]} Rf1+ {[%emt 0:00:00]} 65. Kg6 {[%emt 0:00:09]} Ke7 {[%emt 0:00:00]} 66. Ng5 {[%emt 0:00:30]} Rf6+ {[%emt 0:00:12]} 67. Kg7 {[%emt 0:00:32]} 1-0

[Event "XLV Badalona Open 2019"]
[Site "Badalona"]
[Date "2019.08.07"]
[Round "6.6"]
[White "Perpinya Rofes, Lluis Maria"]
[Black "Mascaro March, Pedro"]
[Result "0-1"]
[ECO "B01"]
[WhiteElo "2319"]
[BlackElo "2376"]
[Annotator "ChessBase"]
[PlyCount "206"]
[EventDate "2019.08.02"]
[EventType "swiss"]
[EventCountry "ESP"]
[SourceTitle "playchess.com"]
[Source "ChessBase"]
[SourceQuality "1"]
[TimeControl "5400+30"]

1. e4 d5 {[%emt 0:03:05]} 2. exd5 {[%emt 0:00:00]} Qxd5 {[%emt 0:00:23]} 3. Nc3 {[%emt 0:00:34]} Qd8 {[%emt 0:00:06]} 4. d4 {[%emt 0:00:59]} Nf6 {[%emt 0:00:18]} 5. Nf3 {[%emt 0:02:42]} g6 {[%emt 0:00:56]} 6. Bf4 {[%emt 0:03:40]} a6 {[%emt 0:00:25]} 7. Ne5 {[%emt 0:05:02]} Bg7 {[%emt 0:03:20]} 8. Qd2 {[%emt 0:03:36]} O-O {[%emt 0:00:42]} 9. O-O-O {[%emt 0:09:12]} b5 {[%emt 0:02:54]} 10. Bh6 {[%emt 0:09:07]} Bb7 {[%emt 0:02:15]} 11. f3 {[%emt 0:04:01]} Nbd7 {[%emt 0:00:08]} 12. Bxg7 {[%emt 0:08:09]} Kxg7 {[%emt 0:02:28]} 13. Qf4 {[%emt 0:08:36]} Nb6 {[%emt 0:07:57]} 14. h4 {[%emt 0:02:55]} Qd6 {[%emt 0:06:51]} 15. h5 {[%emt 0:15:45]} Nxh5 {[%emt 0:00:04]} 16. Rxh5 {[%emt 0:00:08]} gxh5 {[%emt 0:00:12]} 17. Qg5+ {[%emt 0:00:10]} Kh8 {[%emt 0:02:18]} 18. Qxh5 {[%emt 0:03:37]} Qf6 {[%emt 0:01:42]} 19. Bd3 {[%emt 0:10:20]} h6 {[%emt 0:03:51]} 20. Kb1 {[%emt 0:02:13]} Kg7 {[%emt 0:06:31]} 21. Rh1 {[%emt 0:02:32]} Rh8 {[%emt 0:02:29]} 22. Rh4 {[%emt 0:00:53]} Rag8 {[%emt 0:23:21]} 23. g3 {[%emt 0:05:42]} Kf8 {[%emt 0:01:00]} 24. Rg4 {[%emt 0:00:09]} Rxg4 {[%emt 0:03:35]} 25. Qxg4 {[%emt 0:00:32]} h5 {[%emt 0:05:08]} 26. Qh3 {[%emt 0:01:14]} Kg7 {[%emt 0:05:20]} 27. Ne2 {[%emt 0:00:39]} Bc8 {[%emt 0:00:00]} 28. Qh2 {[%emt 0:00:34]} c5 {[%emt 0:06:50]} 29. Nf4 {[%emt 0:00:37]} Qg5 {[%emt 0:03:29]} 30. g4 {[%emt 0:00:44]} Kf8 {[%emt 0:00:12]} 31. Nxh5 {[%emt 0:00:33]} Qe3 {[%emt 0:00:16]} 32. a3 {[%emt 0:00:26]} Qxd4 {[%emt 0:02:00]} 33. c3 {[%emt 0:00:33]} Qe3 {[%emt 0:00:58]} 34. Qg3 {[%emt 0:00:27]} Be6 {[%emt 0:01:28]} 35. Be4 {[%emt 0:00:25]} Qe2 {[%emt 0:00:19]} 36. Nd3 {[%emt 0:00:07]} Qd1+ {[%emt 0:00:15]} 37. Nc1 {[%emt 0:00:41]} Qd6 {[%emt 0:00:54]} 38. Qf2 {[%emt 0:00:27]} Nc4 {[%emt 0:00:34]} 39. Nd3 {[%emt 0:00:37]} Ne5 {[%emt 0:00:53]} 40. Qxc5 {[%emt 0:00:03]} Nxd3 41. Qxd6 {[%emt 0:00:03]} exd6 {[%emt 0:00:36]} 42. Bxd3 {[%emt 0:00:51]} Bd5 {[%emt 0:00:08]} 43. Be2 {[%emt 0:00:27]} Ke7 {[%emt 0:01:54]} 44. Kc2 {[%emt 0:00:10]} Bc4 {[%emt 0:00:21]} 45. Bd1 {[%emt 0:00:21]} a5 {[%emt 0:01:36]} 46. b3 Bd5 {[%emt 0:00:09]} 47. Be2 {[%emt 0:00:40]} Bc6 {[%emt 0:01:16]} 48. Kd3 {[%emt 0:02:02]} f5 49. Ke3 {[%emt 0:00:05]} fxg4 {[%emt 0:00:40]} 50. fxg4 {[%emt 0:00:49]} Ke6 {[%emt 0:00:59]} 51. Bd3 {[%emt 0:00:37]} Ke5 {[%emt 0:00:34]} 52. Nf4 {[%emt 0:00:31]} Rh1 {[%emt 0:00:49]} 53. Ne2 {[%emt 0:00:10]} Rh3+ {[%emt 0:00:38]} 54. Kd2 {[%emt 0:00:40]} Rh2 {[%emt 0:00:55]} 55. Ke3 {[%emt 0:00:20]} Bd7 {[%emt 0:00:33]} 56. g5 {[%emt 0:00:12]} Rg2 {[%emt 0:00:26]} 57. g6 {[%emt 0:00:52]} Bf5 {[%emt 0:00:11]} 58. Bxb5 {[%emt 0:00:17]} Bxg6 {[%emt 0:00:12]} 59. b4 {[%emt 0:00:12]} axb4 {[%emt 0:00:12]} 60. axb4 {[%emt 0:00:36]} Rh2 {[%emt 0:00:13]} 61. Nd4 {[%emt 0:01:15]} Be4 {[%emt 0:00:09]} 62. Be2 {[%emt 0:00:30]} Rh3+ {[%emt 0:00:30]} 63. Kd2 Kf4 {[%emt 0:00:05]} 64. Ne6+ {[%emt 0:00:30]} Ke5 {[%emt 0:00:12]} 65. Nd4 {[%emt 0:00:26]} Bd5 {[%emt 0:00:15]} 66. Nb5 {[%emt 0:00:16]} Rh2 {[%emt 0:01:19]} 67. Nd4 {[%emt 0:00:44]} Rg2 {[%emt 0:00:07]} 68. Ke3 {[%emt 0:00:47]} Rg3+ {[%emt 0:00:33]} 69. Kd2 {[%emt 0:00:34]} Be4 {[%emt 0:00:14]} 70. Nb5 {[%emt 0:00:13]} Rg1 {[%emt 0:00:53]} 71. Nd4 Kf4 {[%emt 0:00:06]} 72. Ne6+ {[%emt 0:00:47]} Ke5 {[%emt 0:00:33]} 73. Nd4 {[%emt 0:00:04]} Bd5 {[%emt 0:01:10]} 74. Ke3 {[%emt 0:00:15]} Rg3+ {[%emt 0:00:15]} 75. Kd2 {[%emt 0:00:10]} Ke4 {[%emt 0:01:10]} 76. Nb5 {[%emt 0:00:02]} Ke5 {[%emt 0:00:19]} 77. Nd4 {[%emt 0:00:28]} Rg1 {[%emt 0:00:29]} 78. Ke3 {[%emt 0:00:51]} Ra1 {[%emt 0:00:37]} 79. Bd3 {[%emt 0:01:15]} Ra3 {[%emt 0:00:32]} 80. Kd2 {[%emt 0:01:14]} Be4 {[%emt 0:00:33]} 81. Be2 {[%emt 0:00:30]} Kf4 {[%emt 0:00:45]} 82. Ne6+ {[%emt 0:00:00]} Kf5 {[%emt 0:00:06]} 83. Nd4+ {[%emt 0:01:02]} Ke5 {[%emt 0:00:49]} 84. Bc4 {[%emt 0:00:26]} Bd5 {[%emt 0:00:52]} 85. Bd3 {[%emt 0:00:56]} Kf4 86. Ne2+ {[%emt 0:00:05]} Ke5 {[%emt 0:01:16]} 87. Nd4 Be4 {[%emt 0:00:58]} 88. Bc4 {[%emt 0:00:59]} d5 {[%emt 0:00:28]} 89. Be2 {[%emt 0:00:51]} Bg6 {[%emt 0:00:18]} 90. Nb5 {[%emt 0:00:19]} Ra2+ {[%emt 0:00:11]} 91. Ke3 {[%emt 0:00:24]} Rc2 {[%emt 0:01:15]} 92. Bd1 {[%emt 0:00:23]} Rh2 {[%emt 0:00:21]} 93. Nd4 {[%emt 0:00:42]} Rh3+ {[%emt 0:00:06]} 94. Nf3+ {[%emt 0:00:50]} Kd6 {[%emt 0:00:49]} 95. Kd2 {[%emt 0:00:21]} Bh5 {[%emt 0:00:34]} 96. Ke3 {[%emt 0:00:17]} Rh1 {[%emt 0:00:39]} 97. Be2 {[%emt 0:00:08]} Bxf3 {[%emt 0:00:30]} 98. Bxf3 {[%emt 0:00:48]} Rh3 {[%emt 0:00:00]} 99. Kf4 Rh4+ {[%emt 0:00:06]} 100. Ke3 {[%emt 0:00:41]} Ke5 {[%emt 0:00:14]} 101. Kd2 {[%emt 0:00:32]} Rh3 {[%emt 0:00:34]} 102. Bd1 Kd6 103. Bb3 {[%emt 0:01:04]} d4 0-1

[Event "XLV Badalona Open 2019"]
[Site "Badalona"]
[Date "2019.08.07"]
[Round "6.7"]
[White "Cruz, Filemon"]
[Black "Lopez Gonzalez, Abel Fabian"]
[Result "0-1"]
[ECO "D34"]
[WhiteElo "2304"]
[BlackElo "2355"]
[Annotator "ChessBase"]
[PlyCount "102"]
[EventDate "2019.08.02"]
[EventType "swiss"]
[EventCountry "ESP"]
[SourceTitle "playchess.com"]
[Source "ChessBase"]
[SourceQuality "1"]
[TimeControl "5400+30"]

1. c4 {[%emt 0:00:00]} e6 {[%emt 0:04:33]} 2. Nf3 d5 {[%emt 0:00:08]} 3. d4 {[%emt 0:00:58]} c5 {[%emt 0:00:30]} 4. cxd5 {[%emt 0:00:12]} exd5 {[%emt 0:00:00]} 5. g3 {[%emt 0:00:23]} Nc6 {[%emt 0:00:00]} 6. Bg2 {[%emt 0:00:28]} Nf6 {[%emt 0:00:00]} 7. O-O {[%emt 0:00:52]} Be7 {[%emt 0:00:00]} 8. Nc3 {[%emt 0:03:28]} O-O {[%emt 0:00:03]} 9. dxc5 {[%emt 0:00:30]} Bxc5 {[%emt 0:00:09]} 10. Bg5 {[%emt 0:05:09]} d4 {[%emt 0:00:01]} 11. Ne4 {[%emt 0:00:30]} Be7 {[%emt 0:00:03]} 12. Nxf6+ {[%emt 0:00:21]} Bxf6 {[%emt 0:04:11]} 13. Qd2 h6 {[%emt 0:00:01]} 14. Bxf6 {[%emt 0:00:51]} Qxf6 {[%emt 0:01:53]} 15. Rfd1 {[%emt 0:00:50]} Rd8 {[%emt 0:03:44]} 16. Ne1 {[%emt 0:00:22]} Bg4 {[%emt 0:01:22]} 17. h3 {[%emt 0:00:49]} Be6 {[%emt 0:00:31]} 18. Nd3 {[%emt 0:01:34]} Bd5 {[%emt 0:02:58]} 19. Qf4 {[%emt 0:01:06]} Qe7 {[%emt 0:07:30]} 20. Rd2 Rd6 {[%emt 0:00:02]} 21. Bxd5 {[%emt 0:04:30]} Rxd5 {[%emt 0:11:00]} 22. Rad1 {[%emt 0:07:04]} Qe6 {[%emt 0:15:40]} 23. Qg4 {[%emt 0:12:18]} Qf6 {[%emt 0:02:35]} 24. h4 {[%emt 0:02:10]} Re8 {[%emt 0:09:37]} 25. Rc1 {[%emt 0:01:40]} Qe7 {[%emt 0:01:28]} 26. Qf3 {[%emt 0:05:37]} Rd6 {[%emt 0:04:40]} 27. Rcc2 {[%emt 0:02:59]} Rf6 {[%emt 0:00:22]} 28. Qg2 {[%emt 0:01:39]} Rf5 {[%emt 0:04:07]} 29. b3 {[%emt 0:04:20]} Qa3 {[%emt 0:01:31]} 30. Rc4 {[%emt 0:01:04]} Qa5 {[%emt 0:05:27]} 31. Rdc2 {[%emt 0:03:29]} Rf6 {[%emt 0:04:07]} 32. b4 {[%emt 0:05:29]} Qb6 {[%emt 0:04:15]} 33. a4 {[%emt 0:12:59]} a6 {[%emt 0:01:01]} 34. Rc5 {[%emt 0:00:36]} Rfe6 {[%emt 0:05:34]} 35. b5 {[%emt 0:07:08]} Nd8 {[%emt 0:03:37]} 36. Qf3 {[%emt 0:00:54]} axb5 {[%emt 0:00:50]} 37. axb5 {[%emt 0:00:39]} Qa5 {[%emt 0:02:14]} 38. Kg2 {[%emt 0:01:50]} R6e7 {[%emt 0:00:37]} 39. Nf4 Ne6 {[%emt 0:00:09]} 40. Nxe6 {[%emt 0:00:54]} fxe6 41. Re5 {[%emt 0:05:13]} Qb6 {[%emt 0:00:55]} 42. Qe4 {[%emt 0:00:16]} Rf8 {[%emt 0:01:22]} 43. Rd2 {[%emt 0:03:59]} Rd7 {[%emt 0:02:02]} 44. e3 {[%emt 0:01:38]} Qa5 {[%emt 0:00:40]} 45. Rxd4 {[%emt 0:01:34]} Qe1 46. Qc2 {[%emt 0:00:14]} Rc7 {[%emt 0:00:39]} 47. Qd2 {[%emt 0:00:30]} Qa1 {[%emt 0:00:00]} 48. Rxe6 {[%emt 0:02:12]} Rc1 {[%emt 0:00:00]} 49. Rd8 {[%emt 0:00:30]} Rg1+ {[%emt 0:00:04]} 50. Kh3 Qf1+ {[%emt 0:00:52]} 51. Kg4 {[%emt 0:00:16]} Qc4+ 0-1